Cogmind - Beta 12 @@@ ROGUE MODE // 2024.01.28 @ 10:35:30 Player: Jospehas Result: Destroyed by G-47 Trooper with Particle Gun Performance ------------- Evolutions (2) 1000 Regions Visited (7) 1400 Robots Destroyed (27) 135 Value Destroyed (523) 523 Prototype IDs (27) 540 Alien Tech Used (0) 0 Bonus (300) 300 TOTAL SCORE: 3898 Bonus ------- Aligned with FarCom 300 Cogmind --------- Core Integrity 0/550 Matter 259/300 Energy 47/100 System Corruption 0% Temperature Cool (9) Movement Core (100) Ox1 Location -8/Materials Parts ------- > --- POWER (1) -------- (None) > --- PROPULSION (5) --- (None) > --- UTILITY (3) ------ Small Storage Unit Signal Interpreter Terrain Scan Processor > --- WEAPON (2) ------- (None) > --- INVENTORY (8) ---- Flight Unit Latent Energy Streamer Light Assault Rifle Mini Grenade Launcher Mining Laser Peak State ------------ > --- POWER ------------ Light Nuclear Core > --- PROPULSION ------- Flight Unit Improved Flight Unit Improved Flight Unit Surge Thruster Surge Thruster > --- UTILITY ---------- Small Storage Unit Signal Interpreter Terrain Scan Processor > --- WEAPON ----------- Blade Saw Blade Saw > --- INVENTORY -------- Light Deuterium Engine Latent Energy Streamer Ion Cannon Light Assault Rifle Minigun Mini Grenade Launcher Mining Laser [Rating: 28] Favorites ----------- Power Light Ion Engine Engine Light Ion Engine Power Core Light Nuclear Core Propulsion Flight Unit Wheel Wheel Flight Unit Flight Unit Utility Signal Interpreter Device Sensor Array Storage Small Storage Unit Processor Signal Interpreter Weapon Light Assault Rifle Energy Gun Medium Laser Energy Cannon Ion Cannon Ballistic Gun Light Assault Rifle Special Weapon Mining Laser Slashing Weapon Blade Saw Build | -11 -10 -10 -9 -9 -9 -8 -8 ------- Run | Jun Mat Min Mat Min Exi Min Mat Slots Evolved 4 | . . . 2 . . . 2 Power . | . . . . . . . . Propulsion 3 | . . . 2 . . . 1 Utility 1 | . . . . . . . 1 Weapon . | . . . . . . . . Parts Attached 58 | 6 7 8 15 . . . 22 Power 9 | 1 1 1 3 . . . 3 Engine 8 | 1 1 1 3 . . . 2 Core 1 | . . . . . . . 1 Reactor . | . . . . . . . . Propulsion 24 | 2 2 3 9 . . . 8 Treads . | . . . . . . . . Leg . | . . . . . . . . Wheel 2 | 2 . . . . . . . Hover . | . . . . . . . . Flight 22 | . 2 3 9 . . . 8 Utility 6 | 1 2 . 1 . . . 2 Device 2 | . 1 . . . . . 1 Storage 2 | 1 . . 1 . . . . Processor 2 | . 1 . . . . . 1 Hackware . | . . . . . . . . Protection . | . . . . . . . . Artifact . | . . . . . . . . Weapon 19 | 2 2 4 2 . . . 9 Energy Gun 1 | 1 . . . . . . . Energy Cannon 1 | . . . . . . . 1 Ballistic Gun 12 | 1 2 3 2 . . . 4 Ballistic Cannon . | . . . . . . . . Launcher . | . . . . . . . . Special Weapon 1 | . . 1 . . . . . Impact Weapon . | . . . . . . . . Slashing Weapon 4 | . . . . . . . 4 Piercing Weapon . | . . . . . . . . Special Melee Weapon . | . . . . . . . . Unidentified Prototypes 2 | . . . 1 . . . 1 Parts Lost 19 | . . . 2 . . . 17 Power 3 | . . . . . . . 3 Propulsion 10 | . . . 2 . . . 8 Utility 1 | . . . . . . . 1 Weapon 5 | . . . . . . . 5 Highest Loss Streak 8 | . . . 2 . . . 8 To Critical Strikes . | . . . . . . . . Average Slot Usage (%) 93 | . 72 99 96 100 100 100 83 Engine 10 | . 14 14 10 11 11 11 5 Flight 34 | . 23 28 43 44 44 44 35 Device 6 | . 9 14 . . . . 3 Storage 6 | . 2 . 11 11 11 11 9 Processor 12 | . 4 14 11 11 11 11 13 Ballistic Gun 18 | . 12 24 20 22 22 22 8 Special Weapon 1 | . . 3 . . . . . Slashing Weapon 1 | . . . . . . . 5 Naked Turns . | . . . . . . . . Heaviest Build 14 | 14 14 7 10 10 10 10 14 Greatest Support 26 | 26 26 8 18 18 18 18 22 Greatest Overweight (x) 3 | . 3 . . . . . 3 Average Overweight (x) . | . . . . . . . . Largest Inventory Capacity 8 | 8 8 5 8 8 8 8 8 Average Capacity 6 | 7 5 5 7 8 8 8 8 Most Carried 8 | 4 7 5 8 8 8 8 8 Average Carried 5 | 2 3 4 4 8 7 8 7 Final Capacity 8 | 8 5 5 8 8 8 8 8 Final Carried 8 | 4 4 5 8 8 8 8 5 Class Distribution -------------------- 44% | Mutant 44% | Scavenger-Sprinter 7% | Scavenger-Scout Dominant Class ---------------- Mutant | -10/Materials Mutant | -10/Mines Scavenger-Sprinter | -9/Materials Scavenger-Sprinter | -9/Mines Scavenger-Sprinter | -9/Exiles Scavenger-Sprinter | -8/Mines Scavenger-Sprinter | -8/Materials Resources | -11 -10 -10 -9 -9 -9 -8 -8 ----------- Run | Jun Mat Min Mat Min Exi Min Mat Matter Collected 836 | 235 . 182 107 . . . 312 Remotely . | . . . . . . . . Salvage Created 709 | . . 145 152 . . . 412 Parts 57 | . . 13 12 . . . 32 Haulers Intercepted . | . . . . . . . . Recyclers Shooed . | . . . . . . . . Parts Field Recycled . | . . . . . . . . Retrieved Matter . | . . . . . . . . Parts Self-Destructed . | . . . . . . . . Prevented . | . . . . . . . . Kills | -11 -10 -10 -9 -9 -9 -8 -8 ------- Run | Jun Mat Min Mat Min Exi Min Mat Combat Hostiles Destroyed 26 | . . 9 5 . . . 12 Melee 4 | . . . . . . . 4 Guns 20 | . . 9 5 . . . 6 Cannons 2 | . . . . . . . 2 Classes Destroyed 5 | . . 1 1 . . . 3 Recycler 1 | . . . . . . . 1 Swarmer 15 | . . 9 3 . . . 3 Cutter 5 | . . . . . . . 5 Grunt 1 | . . . . . . . 1 Sentry 5 | . . . 2 . . . 3 Best Kill Streak 5 | . . 3 5 . . . 5 Combat Bots Only 5 | . . 3 5 . . . 4 Max Kills in Single Turn 2 | . . 1 2 . . . 1 Gunslinging 1 | . . . 1 . . . . Exploded . | . . . . . . . . Melee 1 | . . . . . . . 1 Uniques/NPCs Destroyed . | . . . . . . . . Combat | -11 -10 -10 -9 -9 -9 -8 -8 -------- Run | Jun Mat Min Mat Min Exi Min Mat Damage Taken 2017 | . . 210 288 . . . 1519 Core 720 | . . 63 105 . . . 552 Absorbed by Shields . | . . . . . . . . Regen/Repaired (Parts) 51 | . . . 51 . . . . Core Remaining (%) 82 | 100 . 74 . . . 73 . Volleys Fired 69 | . . 23 13 . . . 33 Largest 2 | . . 2 2 . . . 2 Hottest 85 | . . 40 40 . . . 85 Shots Fired 117 | . . 45 26 . . . 46 Gun 108 | . . 45 26 . . . 37 Cannon 9 | . . . . . . . 9 Launcher . | . . . . . . . . Special . | . . . . . . . . Kinetic 108 | . . 45 26 . . . 37 Thermal 9 | . . . . . . . 9 Explosive . | . . . . . . . . Electromagnetic . | . . . . . . . . Robot Hit Streak 11 | . . 7 11 . . . 5 Robot Miss Streak 4 | . . 3 2 . . . 4 Penetration Max . | . . . . . . . . Secondary Targets 3 | . . 1 2 . . . . Max Gunslinging Chain 1 | . . 1 1 . . . . Shots Hit Robots 86 | . . 29 21 . . . 36 Core Hits 43 | . . 12 9 . . . 22 Critical Kills . | . . . . . . . . Critical Parts Destroyed 1 | . . . 1 . . . . Critical Strikes 4 | . . . 1 . . . 3 Destroy 1 | . . . 1 . . . . Sever 3 | . . . . . . . 3 Melee Attacks 26 | . . . . . . . 26 Impact . | . . . . . . . . Slashing 26 | . . . . . . . 26 Piercing . | . . . . . . . . Sneak Attacks . | . . . . . . . . Combat Hostiles . | . . . . . . . . Follow-up Attacks . | . . . . . . . . Damage Inflicted 1161 | . . 300 184 . . . 677 Guns 795 | . . 300 184 . . . 311 Cannons 160 | . . . . . . . 160 Explosions 7 | . . . . . . . 7 Melee 199 | . . . . . . . 199 Ramming . | . . . . . . . . Kinetic 795 | . . 300 184 . . . 311 Thermal 160 | . . . . . . . 160 Explosive 7 | . . . . . . . 7 Electromagnetic . | . . . . . . . . Impact . | . . . . . . . . Slashing 199 | . . . . . . . 199 Piercing . | . . . . . . . . Highest Corruption . | . . . . . . . . Average Corruption . | . . . . . . . . Corruption Purged . | . . . . . . . . Corruption Blocked . | . . . . . . . . Overload Shots . | . . . . . . . . Overflow Damage . | . . . . . . . . Projectiles . | . . . . . . . . Explosions . | . . . . . . . . Melee . | . . . . . . . . Knockbacks . | . . . . . . . . Impact . | . . . . . . . . Kinetic . | . . . . . . . . Secondary . | . . . . . . . . Self-Inflicted Damage . | . . . . . . . . Shots . | . . . . . . . . Rammed 2 | . . . . . . . 2 Targets Rammed 2 | . . . . . . . 2 Kicked . | . . . . . . . . Crushed . | . . . . . . . . Highest Temperature 136 | . . 8 22 . . . 136 Average Temperature 18 | . . 4 7 . . . 29 Received Heat Transfer 504 | . . . 54 . . . 450 Siege Activations . | . . . . . . . . Robots Corrupted . | . . . . . . . . Combat Hostiles . | . . . . . . . . Parts Fried . | . . . . . . . . Impact Corruptions . | . . . . . . . . Robots Melted . | . . . . . . . . Combat Hostiles . | . . . . . . . . Parts Melted . | . . . . . . . . Heat Transferred 259 | . . . . . . . 259 Parts Sabotaged . | . . . . . . . . Parts Stolen . | . . . . . . . . Parts Stripped . | . . . . . . . . Power Chain Reactions . | . . . . . . . . Missiles Intercepted . | . . . . . . . . Alert | -11 -10 -10 -9 -9 -9 -8 -8 ------- Run | Jun Mat Min Mat Min Exi Min Mat Peak Influence 313 | . 19 142 244 94 . . 313 Initial 94 | . . 7 27 94 . . . Average 78 | . 12 67 119 94 . . 109 Maximum Alert Level 1 | . . . 1 . . . 1 Low Security (%) 91 | 100 100 100 76 100 . 100 82 Level 1 8 | . . . 23 . . . 17 Level 2 . | . . . . . . . . Level 3 . | . . . . . . . . Level 4 . | . . . . . . . . Level 5 . | . . . . . . . . High Security . | . . . . . . . . Max Security . | . . . . . . . . Squads Dispatched 7 | . . . 1 . . . 6 Investigation 1 | . . . . . . . 1 Extermination . | . . . . . . . . Reinforcement 6 | . . . 1 . . . 5 Assault . | . . . . . . . . Garrison . | . . . . . . . . Intercept . | . . . . . . . . Searches Triggered . | . . . . . . . . Construction Impeded . | . . . . . . . . Haulers Reinforced . | . . . . . . . . Active Scanning Responses . | . . . . . . . . Cargo Convoy Interrupts . | . . . . . . . . Stealth | -11 -10 -10 -9 -9 -9 -8 -8 --------- Run | Jun Mat Min Mat Min Exi Min Mat Distress Signals 4 | . . . 2 . . . 2 Communications Jammed . | . . . . . . . . Distress Signals . | . . . . . . . . Times Spotted 50 | . 1 10 12 . . 3 24 Peak Tracking Total 8 | . 1 3 8 . . 4 7 Tactical Retreats 2 | . . 1 1 . . . . Traps | -11 -10 -10 -9 -9 -9 -8 -8 ------- Run | Jun Mat Min Mat Min Exi Min Mat Traps Triggered . | . . . . . . . . Indirectly . | . . . . . . . . Trap Hack Attempts . | . . . . . . . . Triggered . | . . . . . . . . Disarmed . | . . . . . . . . Reprogrammed 6 | . . . 6 . . . . Reused . | . . . . . . . . Traps Extracted . | . . . . . . . . Installed . | . . . . . . . . Triggered . | . . . . . . . . Most Traps Carried 1 | . . 1 1 1 1 . . Machines | -11 -10 -10 -9 -9 -9 -8 -8 ---------- Run | Jun Mat Min Mat Min Exi Min Mat Machines Disabled 1 | . . . . . . . 1 Max in Single Turn 1 | . . . . . . . 1 Machines Repaired . | . . . . . . . . Machines Sabotaged . | . . . . . . . . Overloaded Fab Kills . | . . . . . . . . Hacking | -11 -10 -10 -9 -9 -9 -8 -8 --------- Run | Jun Mat Min Mat Min Exi Min Mat Machines Accessed 13 | . 3 . 3 . 3 . 4 Terminals 8 | . 2 . 2 . . . 4 Fabricators . | . . . . . . . . Repair Stations 1 | . . . 1 . . . . Recycling Units 1 | . 1 . . . . . . Scanalyzers . | . . . . . . . . Garrison Access . | . . . . . . . . Total Hacks 31 | . 7 . 8 . 4 . 12 Successful 22 | . 5 . 7 . 4 . 6 Failed 9 | . 2 . 1 . . . 6 Catastrophic . | . . . . . . . . Database Lockouts . | . . . . . . . . Manual 2 | . . . . . 2 . . Terminals 20 | . 4 . 4 . . . 12 Fabricators . | . . . . . . . . Repair Stations 4 | . . . 4 . . . . Recycling Units 3 | . 3 . . . . . . Scanalyzers . | . . . . . . . . Garrison Access . | . . . . . . . . Terminal Hacks 15 | . 2 . 3 . 4 . 6 Record 6 | . . . 1 . 3 . 2 Prototype ID Bank 1 | . . . . . . . 1 Branch Access Points 1 | . . . . . . . 1 Alert Level 1 | . . . . . . . 1 Locate Traps 3 | . 2 . 1 . . . . Reprogram Traps 1 | . . . 1 . . . . Zone Layout 1 | . . . . . . . 1 EX-Prototype ID Bank 1 | . . . . . 1 . . Fabricator Hacks . | . . . . . . . . Repair Station Hacks 4 | . . . 4 . . . . Scan Component 2 | . . . 2 . . . . Repair 2 | . . . 2 . . . . Recycling Unit Hacks 3 | . 3 . . . . . . Recycle Component 2 | . 2 . . . . . . Retrieve Matter 1 | . 1 . . . . . . Scanalyzer . | . . . . . . . . Garrison Access Hacks . | . . . . . . . . Unauthorized Hacks . | . . . . . . . . Terminals . | . . . . . . . . Fabricators . | . . . . . . . . Repair Stations . | . . . . . . . . Recycling Units . | . . . . . . . . Scanalyzers . | . . . . . . . . Garrison Access . | . . . . . . . . Data Cores Recovered . | . . . . . . . . Used . | . . . . . . . . Hacking Detections 5 | . 1 . 1 . . . 3 Full Trace Events 2 | . 1 . . . . . 1 Feedback Events . | . . . . . . . . Feedback Blocked . | . . . . . . . . Robot Schematics Acquired . | . . . . . . . . Robots Built . | . . . . . . . . Authchips . | . . . . . . . . Time . | . . . . . . . . Total Robot Build Rating . | . . . . . . . . Part Schematics Acquired . | . . . . . . . . Parts Built . | . . . . . . . . Authchips . | . . . . . . . . Time . | . . . . . . . . Total Part Build Rating . | . . . . . . . . Parts Repaired 2 | . . . 2 . . . . Time 52 | . . . 52 . . . . Parts Recycled 2 | . 2 . . . . . . Recycled Matter . | . . . . . . . . Retrieved Matter . | . . . . . . . . Retrieved Components . | . . . . . . . . Parts Scanalyzed . | . . . . . . . . Part Schematics Acquired . | . . . . . . . . Parts Damaged . | . . . . . . . . Bothacking | -11 -10 -10 -9 -9 -9 -8 -8 ------------ Run | Jun Mat Min Mat Min Exi Min Mat Used RIF Installer . | . . . . . . . . Robots Hacked . | . . . . . . . . Non-combat . | . . . . . . . . Combat . | . . . . . . . . Robot Hacks Applied . | . . . . . . . . Relay Couplers Released . | . . . . . . . . Fabnet Peak Effective % . | . . . . . . . . Robots Rewired . | . . . . . . . . Allies Hacked . | . . . . . . . . Hacks Repelled . | . . . . . . . . Allies | -11 -10 -10 -9 -9 -9 -8 -8 -------- Run | Jun Mat Min Mat Min Exi Min Mat Total Allies . | . . . . . . . . Largest Group . | . . . . . . . . Highest-Rated Group . | . . . . . . . . Highest-Rated Ally . | . . . . . . . . Total Orders . | . . . . . . . . Ally Attacks . | . . . . . . . . Total Damage . | . . . . . . . . Kills . | . . . . . . . . Allies Corrupted . | . . . . . . . . Allies Melted . | . . . . . . . . Intel | -11 -10 -10 -9 -9 -9 -8 -8 ------- Run | Jun Mat Min Mat Min Exi Min Mat Robot Analysis Total . | . . . . . . . . Derelict Logs Recovered 1 | . . 1 . . . . . Drone Launches . | . . . . . . . . Drone Recoveries . | . . . . . . . . Exploration | -11 -10 -10 -9 -9 -9 -8 -8 ------------- Run | Jun Mat Min Mat Min Exi Min Mat Turns Passed 1633 | 60 106 523 231 13 231 60 409 Spaces Moved 2921 | 54 209 813 360 41 730 193 521 Core 6 | 1 1 . . . . . 4 Treads . | . . . . . . . . Legs . | . . . . . . . . Wheels 64 | 53 11 . . . . . . Hover . | . . . . . . . . Flight 2851 | . 197 813 360 41 730 193 517 Fastest Speed 26 | 50 37 37 31 31 31 31 26 Average Speed 33 | 88 41 37 31 31 31 31 27 Slowest Speed 200 | 90 200 37 34 31 31 31 200 Overloaded Moves . | . . . . . . . . Propulsion Burnouts . | . . . . . . . . Robots Hopped 15 | . . 6 2 . . 5 2 Cave-ins Triggered . | . . . . . . . . Exploration Rate (%) 42 | 3 36 97 27 5 93 36 40 Regions Visited 7 Branch Regions 4 Pre-discovered Areas 1 | . . 1 . . . . . Known Exits Taken 6 | . 1 1 1 1 1 1 . Unknown Exits Taken 1 | 1 . . . . . . . Scrap Searched 1 | . . 1 . . . . . Spaces Dug . | . . . . . . . . Terrain Destroyed 19 | . . . . . . . 19 Melee . | . . . . . . . . Projectile 1 | . . . . . . . 1 AOE 18 | . . . . . . . 18 Terrain Rammed . | . . . . . . . . Walls Destroyed . | . . . . . . . . Machines Disabled . | . . . . . . . . Actions | -11 -10 -10 -9 -9 -9 -8 -8 --------- Run | Jun Mat Min Mat Min Exi Min Mat Total 3395 | 63 231 993 455 40 735 187 691 Wait 267 | . . 142 56 . . . 69 Move 2886 | 53 208 800 355 40 729 184 517 Hop 13 | . . 6 2 . . 3 2 Pick Up 30 | 4 3 6 4 . 3 . 10 Fast Attach 28 | 6 6 2 6 . . . 8 Attach 20 | . 1 2 4 . . . 13 Detach 14 | . 6 1 4 . . . 3 Swap 11 | . . 4 5 . . . 2 Drop 29 | . 7 7 6 . 3 . 6 Fire 69 | . . 23 13 . . . 33 Melee 26 | . . . . . . . 26 Ram 2 | . . . . . . . 2 Kick . | . . . . . . . . Crush . | . . . . . . . . Escape Stasis . | . . . . . . . . Rewire . | . . . . . . . . Trap . | . . . . . . . . Miscellaneous . | . . . . . . . . Route ------- -11/Junkyard -10/Materials (discovered 2 exits: *Mat / *Min) -10/Mines (discovered 2 exits: *Mat x2) -9/Materials (discovered 2 exits: Mat / *Min) -9/Mines -9/Exiles (discovered 2 exits: *Min x2) -8/Mines -8/Materials History --------- Turn | Location | Event 23 | -11/Junkyard | Discovered new exit (range 15) 61 | -11/Junkyard | Entered Materials 127 | -10/Materials | Discovered new exit (range 7) 147 | -10/Materials | Discovered new exit (range 13) 163 | -10/Materials | Identified exit to Mines 167 | -10/Materials | Entered Mines 258 | -10/Mines | Learned 2 Materials zone layouts 306 | -10/Mines | Build established: Mutant 309 | -10/Mines | Found a hidden stash of uninstalled traps 322 | -10/Mines | Learned location of Storage (-7) 681 | -10/Mines | Discovered new exit (range 7) 683 | -10/Mines | Identified exit to Materials 686 | -10/Mines | Discovered exit to Materials (range 8) 690 | -10/Mines | Entered Materials 690 | -9/Materials | Evolved 2 slots: Propulsion x2 691 | -9/Materials | Identified exit to Materials 747 | -9/Materials | Repaired Lgt. Ion Engine 774 | -9/Materials | Repaired Lgt. Assault Rifle 917 | -9/Materials | Discovered new exit (range 12) 920 | -9/Materials | Identified exit to Mines 921 | -9/Materials | Entered Mines 924 | -9/Mines | Deemed a non-threat by the Exiles lab entrance 924 | -9/Mines | Discovered new exit (range 5) 925 | -9/Mines | Identified exit to Exiles 934 | -9/Mines | Entered Exiles 942 | -9/Exiles | Met 8R-AWN 944 | -9/Exiles | Discovered new exit (range 14) 948 | -9/Exiles | Identified exit to Mines 961 | -9/Exiles | Met EX-HEX 972 | -9/Exiles | Met EX-BIN 975 | -9/Exiles | Aligned with FarCom system 976 | -9/Exiles | Given EX-Vault access code 985 | -9/Exiles | Build established: Scavenger-Sprinter 987 | -9/Exiles | Opened EX-Vault 991 | -9/Exiles | Found Prototype Device 998 | -9/Exiles | Identified Skeleton Box 1019 | -9/Exiles | Found Latent Energy Streamer 1028 | -9/Exiles | Warned to stay clear of 0b10 Research branches 1040 | -9/Exiles | Met EX-DEC 1091 | -9/Exiles | Visited The Gauntlet 1161 | -9/Exiles | Discovered exit to Mines (range 11) 1165 | -9/Exiles | Left Exiles lab with Latent Energy Streamer 1165 | -9/Exiles | Entered Mines 1212 | -8/Mines | Discovered exit to Materials (range 4) 1225 | -8/Mines | Entered Materials 1225 | -8/Materials | Evolved 2 slots: Propulsion x1, Utility x1 1418 | -8/Materials | Lost 5 parts (1p3n1u) 1514 | -8/Materials | Lost 3 parts (1p1n1w) 1586 | -8/Materials | Core integrity fell below 50% 1615 | -8/Materials | Core integrity fell below 20% 1634 | -8/Materials | Destroyed by G-47 Trooper with Particle Gun Last Messages --------------- 01598_ R-06 Scavenger collects Blade Saw. 01601_ Flight Unit destroyed. 01601_ R-06 Scavenger destroyed. 01604_ G-47 Trooper destroyed. 01605_ Minigun destroyed. 01607_ Y-45 Defender destroyed. 01613_ Acquired Blade Saw. 01618_ Critical hit (Burn: +37). 01624_ Blade Saw destroyed. 01625_ Slammed into G-47 Trooper. 01626_ O-16 Technician: "IFF HANDSHAKE FAILED. SECURING TERMINAL." 01627_ Slammed into G-47 Trooper. 01627_ Destabilizing: System interference. 01627_ Terrain Scan Processor temporarily disabled. 01630_ Ion Cannon destroyed. 01632_ Blade Saw destroyed. 01632_ Critical hit (Burn: +37). 01633_ Acquired 9 matter. 01633_ ALERT: Hostiles spotted, dispatching reinforcements to Terminal M007. Map ----- +----------------------------------------------------+ | | | | | | | | | | | | | | | | | | | ??????????????????????????????????????????? | | ??????????????????????????????????????????? | | ??????????????????????????????????????????? | | ??????????????????????????????????????????? | | ??????????????????????????????????????????? | | ?????????????????????????????Y??????? ???? | | #??????????????????????????????????? ????? | | #?????????????########+###########? ?????? | | ####??????????# ##+##????? | | ### ##### #???? | | ????? | | #+####??? | | # # ######## "" ???? | | ### ##??####???????# "G g """???? | | #????# ##### ""gg g ! """???? | | ! +? ! w ! """ ??? | | #????# [g@ ! !#? | | [ #????# ##+######% ! """???? | | ! #????##+???# ???# !==/=% # """???? | | #??????????#????# """[ ## #????"???? | | #########????????????# """ #??#????????? | | #????????????# """ #???????????? | | #????????????# r???????????? | | !! #????????????# """ ##??????????? | | !! #????????????# """ #???????????? | | ! #????????????# """ =#???????????? | | #???##+##????# ? #???????????? | | = ##### ################??????????? | | / ## !#??????????? | | ############# ##"" #??????????? | | ????????????# ##"T """ """ #??????????? | | ????????????# ##"" """ """ #??????????? | | ????????????# ## """ """ #??????????? | | ???????????## ## #??????????? | | ???????????# ###+########### #????????? | | ???????????# #???????? | | ???????????+ T / ?????? | | ???????????# #???????? | | ???????????# ####### ###### #???????? | | ???????????## ##?????? #??????????????? | | ????????????# #???????? #??????????????? | +----------------------------------------------------+ Best States ------------- Heat Dissipation 31 Energy Generation 14 Energy Capacity 250 Matter Stores 277 Matter Capacity 300 Sight Range 16 Robot Scan Range 14 Terrain Scan Density 85 Evasion (%) 64 Item Schematics ----------------- None Robot Schematics ------------------ None Fabricated ------------ Nothing Alien Tech Used ----------------- None Achievements -------------- None Challenges ------------ None Game ------ Seed EnhancedDynamicSpecial Manual? 0 Play Time 00:42:03 Cumulative 4.4 hours Start 2024.01.28 @ 06:29:32 End 2024.01.28 @ 10:35:30 Sessions 3 Manual Loads 0 Difficulty Rogue Special Mode None Game No. 8 Rogue 7 Adventurer 1 Explorer 0 Win Type - Total 0 Types 0/0/0/0/0/0/0/0/0 Lore% 6 Gallery% 10 Achievement% 100 Wizard Run 0 Options --------- ASCII 0 Keyboard 1 Movement Vi Keybinds 0 Fullscreen 2 Font 18/SmallcapsGlow Map View 76x50 Tactical HUD 1 Map Filters NONE Filters NONE Steam 1 RUN: da834203-3d83-49d2-b5e6-fa6c502d8b08